fUST/lending_fUST_20250622
["ID","MTS","AMOUNT","RATE_DAILY","PERIOD"]
[366871839,1750531865545,-1748.0,0.000249,3]
[366871840,1750531865556,-317.0,0.000249,3]
[366871841,1750531865565,-1748.0,0.000249,3]
[366871842,1750531865575,-317.0,0.000249,3]
[366871843,1750531865584,-1748.0,0.000249,3]
[366871844,1750531865594,-317.0,0.000249,3]
[366871845,1750531865603,-1748.0,0.000249,3]
[366871846,1750531865613,-317.0,0.000249,3]
[366871847,1750531865623,-1748.0,0.000249,3]
[366871848,1750531865632,-1748.0,0.000249,3]
[366871849,1750531865641,-1748.0,0.000249,3]
[366871850,1750531865652,-317.0,0.000249,3]
[366871851,1750531865662,-1748.0,0.000249,3]
[366871852,1750531865672,-317.0,0.000249,3]
[366871853,1750531865681,-257.69111037,0.000249,3]
[366871854,1750531865691,-1748.0,0.000249,3]
[366871855,1750531865699,-896.1030757,0.000249,3]
[366871856,1750531865709,-500.0,0.000249,9]
[366871857,1750531865719,-500.0,0.000249,9]
[366871858,1750531865728,-151.0,0.000249,3]
[366871859,1750531865738,-171.0,0.000249,3]
[366871860,1750531865747,-151.0,0.000249,3]
[366871861,1750531865757,-171.0,0.000249,3]
[366871862,1750531865766,-151.0,0.000249,3]
[366871863,1750531865776,-151.0,0.000249,3]
[366871864,1750531865787,-271.23252024,0.000249,3]
[366871865,1750531865796,-151.0,0.000249,3]
[366871866,1750531865806,-151.0,0.000249,3]
[366871867,1750531865815,-151.0,0.000249,3]
[366871868,1750531865825,-151.0,0.000249,3]
[366871869,1750531865834,-151.0,0.000249,3]
[366871870,1750531865844,-151.0,0.000249,3]
[366871871,1750531865853,-151.0,0.000249,3]
[366871872,1750531865863,-151.0,0.000249,3]
[366871873,1750531865872,-151.0,0.000249,3]
[366871874,1750531865882,-151.0,0.000249,3]
[366871875,1750531865891,-250.66227649,0.000249,3]
[366871876,1750531865900,-160.0,0.000249,3]
[366871877,1750531865910,-511769.49810165,0.000249,2]
[366871878,1750531866175,-855.4,0.000249,2]
[366871879,1750531866186,-91387.23221321,0.000249,2]
[366871880,1750531866261,-26122.76728731,0.00019371,2]
[366871881,1750531866277,-2221.69833857,0.00019371,2]
[366871882,1750531866290,-21655.53437412,0.00019371,2]
[366871883,1750531866299,-466.80194782,0.00021917,2]
[366871884,1750531866309,-460.0,0.00021917,2]
[366871885,1750531866318,-460.0,0.00021917,2]
[366871886,1750531866328,-445.39,0.00021917,2]
[366871887,1750531866338,-22261.43300114,0.000249,2]
[366871888,1750531866348,-600.0,0.00024906,2]
[366871889,1750531866357,-168.0,0.00024915,2]
[366871890,1750531866367,-600.0,0.00024915,2]
[366871891,1750531866376,-261.05735563,0.00024918,2]
[366871892,1750531866390,-200.0,0.00024922,120]
[366871893,1750531866402,-583.34561387,0.00024926,2]
[366871894,1750531866411,-200.0,0.00024931,120]
[366871895,1750531866420,-311.99785319,0.00024932,2]
[366871896,1750531866429,-177.0,0.00024935,2]
[366871897,1750531866439,-500.0,0.0002495,2]
[366871898,1750531866448,-500.0,0.00024973,2]
[366871899,1750531866458,-1118.888283,0.0002498,5]
[366871900,1750531866468,-500.0,0.00024989,2]
[366871901,1750531866479,-250.0,0.00024997,2]
[366871902,1750531866489,-250.0,0.00024997,15]
[366871903,1750531866498,-250.0,0.00024997,10]
[366871904,1750531866507,-250.0,0.00024997,15]
[366871905,1750531866517,-250.0,0.00024997,15]
[366871906,1750531866526,-250.0,0.00024997,7]
[366871907,1750531866536,-250.0,0.00024997,15]
[366871908,1750531866545,-250.0,0.00024997,7]
[366871909,1750531866554,-250.0,0.00024997,10]
[366871910,1750531866563,-250.0,0.00024997,15]
[366871911,1750531866573,-250.0,0.00024997,10]
[366871912,1750531866582,-250.0,0.00024997,2]
[366871913,1750531866591,-250.0,0.00024997,7]
[366871914,1750531866600,-250.0,0.00024997,7]
[366871915,1750531866609,-250.0,0.00024997,7]
[366871916,1750531866619,-250.0,0.00024997,7]
[366871917,1750531866628,-250.0,0.00024997,7]
[366871918,1750531866637,-250.0,0.00024997,10]
[366871919,1750531866647,-250.0,0.00024997,2]
[366871920,1750531866656,-250.0,0.00024997,2]
[366871921,1750531866666,-250.0,0.00024997,7]
[366871922,1750531866675,-250.0,0.00024997,7]
[366871923,1750531866684,-250.0,0.00024997,15]
[366871924,1750531866693,-250.0,0.00024997,10]
[366871925,1750531866704,-250.0,0.00024997,10]
[366871926,1750531866713,-250.0,0.00024997,10]
[366871927,1750531866722,-250.0,0.00024997,2]
[366871928,1750531866732,-250.0,0.00024997,2]
[366871929,1750531866741,-250.0,0.00024997,10]
[366871930,1750531866751,-250.0,0.00024997,7]
[366871931,1750531866760,-250.0,0.00024997,10]
[366871932,1750531866769,-250.0,0.00024997,7]
[366871933,1750531866778,-250.0,0.00024997,15]
[366871934,1750531866788,-250.0,0.00024997,10]
[366871935,1750531866798,-250.0,0.00024997,2]
[366871936,1750531866808,-250.0,0.00024997,10]
[366871937,1750531866818,-250.0,0.00024997,2]
[366871938,1750531866827,-250.0,0.00024997,15]
[366871939,1750531866837,-250.0,0.00024997,7]
[366871940,1750531866846,-250.0,0.00024997,7]
[366871941,1750531866856,-250.0,0.00024997,2]
[366871942,1750531866865,-250.0,0.00024997,10]
[366871943,1750531866876,-250.0,0.00024997,2]
[366871944,1750531866885,-250.0,0.00024997,2]
[366871945,1750531866894,-250.0,0.00024997,2]
[366871946,1750531866903,-250.0,0.00024997,7]
[366871947,1750531866913,-250.0,0.00024997,2]
[366871948,1750531866922,-250.0,0.00024997,15]
[366871949,1750531866931,-250.0,0.00024997,10]
[366871950,1750531866941,-250.0,0.00024997,10]
[366871951,1750531866950,-250.0,0.00024997,7]
[366871952,1750531866959,-250.0,0.00024997,2]
[366871953,1750531866968,-250.0,0.00024997,2]
[366871954,1750531866978,-250.0,0.00024997,15]
[366871955,1750531866987,-250.0,0.00024997,15]
[366871956,1750531866996,-250.0,0.00024997,2]
[366871957,1750531867005,-250.0,0.00024997,15]
[366871958,1750531867015,-250.0,0.00024997,7]
[366871959,1750531867024,-250.0,0.00024997,15]
[366871960,1750531867034,-250.0,0.00024997,10]
[366871961,1750531867044,-250.0,0.00024997,2]
[366871962,1750531867053,-250.0,0.00024997,7]
[366871963,1750531867063,-250.0,0.00024997,7]
[366871964,1750531867072,-250.0,0.00024997,7]
[366871965,1750531867081,-250.0,0.00024997,10]
[366871966,1750531867090,-250.0,0.00024997,2]
[366871967,1750531867100,-250.0,0.00024997,15]
[366871968,1750531867109,-250.0,0.00024997,2]
[366871969,1750531867118,-250.0,0.00024997,10]
[366871970,1750531867127,-250.0,0.00024997,10]
[366871971,1750531867136,-250.0,0.00024997,15]
[366871972,1750531867145,-250.0,0.00024997,7]
[366871973,1750531867155,-250.0,0.00024997,15]
[366871974,1750531867164,-250.0,0.00024997,2]
[366871975,1750531867173,-250.0,0.00024997,15]
[366871976,1750531867183,-250.0,0.00024997,2]
[366871977,1750531867192,-250.0,0.00024997,2]
[366871978,1750531867202,-250.0,0.00024997,2]
[366871979,1750531867211,-185.71,0.00024997,10]
[366871980,1750531867221,-1574.79006043,0.00024999,2]
[366871981,1750531867230,-160.0,0.00025,3]
[366871982,1750531867240,-150.0,0.00025,2]
[366871983,1750531867250,-172.47229057,0.00025,2]
[366871984,1750531867259,-4104.67446648,0.00025,2]
[366871985,1750531867269,-1103.835,0.00025,16]
[366871986,1750531867278,-4767.5147,0.00025,18]
[366871987,1750531867288,-15735.0,0.00025,20]
[366871988,1750531867297,-1060.8839348,0.00025,2]
[366871989,1750531867306,-2612.56321189,0.00025,2]
[366871990,1750531867316,-10364.0,0.00025,2]
[366871991,1750531867326,-207.24555401,0.00025,2]
[366871992,1750531867336,-357.74592576,0.00025,2]
[366871993,1750531867345,-600.0,0.00025,2]
[366871994,1750531867355,-2639.0,0.00025,10]
[366871995,1750531867365,-10244.0,0.00025,15]
[366871996,1750531867375,-15957.70451162,0.00025,2]
[366871997,1750531867385,-24396.35781364,0.00025,2]
[366871998,1750531867398,-120000.0,0.00025,2]
[366871999,1750531867407,-1000.0,0.00025,2]
[366872000,1750531867417,-500.0,0.00025,17]
[366872001,1750531867426,-500.0,0.00025,2]
[366872002,1750531867437,-500.0,0.00025,2]
[366872003,1750531867447,-500.0,0.00025,2]
[366872004,1750531867456,-500.0,0.00025,2]
[366872005,1750531867468,-150.0,0.00025,3]
[366872006,1750531867479,-21616.24091909,0.00025,10]
[366872007,1750531867490,-160.0,0.00025,7]
[366872008,1750531867500,-160.0,0.00025,10]
[366872009,1750531867510,-1000.0,0.00025,25]
[366872010,1750531867519,-1551.0,0.00025,14]
[366872011,1750531867529,-516.0,0.00025,30]
[366872012,1750531867539,-203.5490439,0.00025,120]
[366872013,1750531867548,-160.0,0.00025,10]
[366872014,1750531867558,-1000.0,0.00025,5]
[366872015,1750531867655,-836.41202323,0.00025,3]
[366872016,1750531867666,-846.23824438,0.00025,3]
[366872017,1750531867676,-160.0,0.00025,3]
[366872018,1750531867685,-160.0,0.00025,10]
[366872019,1750531867694,-836.41202323,0.00025,10]
[366872020,1750531867704,-12549.17366507,0.00025,3]
[366872021,1750531867713,-160.0,0.00025,3]
[366872022,1750531867723,-160.0,0.00025,10]
[366872023,1750531867732,-230.10342898,0.00025,3]
[366872024,1750531867742,-202.740427,0.00025,2]
[366872025,1750531867752,-523.9660634,0.00025,10]
[366872026,1750531867761,-523.9660634,0.00025,10]
[366872027,1750531867772,-424.93363889,0.00025,3]
[366872028,1750531867782,-424.93363889,0.00025,10]
[366872029,1750531867792,-160.0,0.00025,3]
[366872030,1750531867801,-500.0,0.00025006,2]
[366872031,1750531867811,-680.1745725,0.00025009,2]
[366872032,1750531867820,-4000.0,0.00025016,4]
[366872033,1750531867830,-1000.0,0.0002504,3]
[366872034,1750531867840,-823.0,0.00025057,2]
[366872035,1750531867850,-324.0,0.00025057,2]
[366872036,1750531867859,-823.0,0.00025058,2]
[366872037,1750531867869,-500.70705899,0.0002506,3]
[366872038,1750531867879,-262.26042249,0.00025068,120]
[366872039,1750531867889,-350.0,0.00025068,2]
[366872040,1750531867899,-1867.10330499,0.00025072,12]
[366872041,1750531867909,-200.0,0.00025077,120]
[366872042,1750531867919,-641.41,0.00025078,3]
[366872043,1750531867928,-500.0,0.0002509,3]
[366872044,1750531867937,-1000.0,0.00025099,3]
[366872045,1750531867947,-683.0,0.00025099,5]
[366872046,1750531867956,-1000.0,0.00025099,3]
[366872047,1750531867965,-1000.0,0.000251,5]
[366872048,1750531867975,-20204.72345957,0.000251,60]
[366872049,1750531867985,-1000.0,0.0002511,3]
[366872050,1750531867994,-1000.0,0.0002512,3]
[366872051,1750531868003,-504.33144106,0.00025121,2]
[366872052,1750531868014,-5000.0,0.00025156,2]
[366872053,1750531868024,-298.1,0.00025158,7]
[366872054,1750531868034,-177.0,0.00025173,2]
[366872055,1750531868043,-200.0,0.00025195,120]
[366872056,1750531868055,-160.0,0.000252,3]
[366872057,1750531868064,-153.0,0.00025206,2]
[366872058,1750531868075,-153.0,0.00025206,2]
[366872059,1750531868085,-153.0,0.00025206,2]
[366872060,1750531868095,-153.0,0.00025206,2]
[366872061,1750531868106,-153.0,0.00025206,2]
[366872062,1750531868116,-153.0,0.00025206,2]
[366872063,1750531868127,-153.0,0.00025206,2]
[366872064,1750531868136,-153.0,0.00025206,2]
[366872065,1750531868146,-153.0,0.00025206,2]
[366872066,1750531868155,-153.0,0.00025206,2]
[366872067,1750531868165,-153.0,0.00025206,2]
[366872068,1750531868177,-153.0,0.00025206,2]
[366872069,1750531868187,-153.0,0.00025206,2]
[366872070,1750531868198,-153.0,0.00025206,2]
[366872071,1750531868208,-153.0,0.00025206,2]
[366872072,1750531868218,-153.0,0.00025206,2]
[366872073,1750531868229,-153.0,0.00025206,2]
[366872074,1750531868239,-153.0,0.00025206,2]
[366872075,1750531868248,-153.0,0.00025206,2]
[366872076,1750531868257,-153.0,0.00025206,2]
[366872077,1750531868268,-153.0,0.00025206,2]
[366872078,1750531868278,-153.0,0.00025206,2]
[366872079,1750531868287,-153.0,0.00025206,2]
[366872080,1750531868297,-153.0,0.00025206,2]
[366872081,1750531868307,-153.0,0.00025206,2]
[366872082,1750531868316,-153.0,0.00025206,2]
[366872083,1750531868325,-153.0,0.00025206,2]
[366872084,1750531868334,-153.0,0.00025206,2]
[366872085,1750531868343,-153.0,0.00025206,2]
[366872086,1750531868352,-153.0,0.00025206,2]
[366872087,1750531868362,-153.0,0.00025206,2]
[366872088,1750531868371,-153.0,0.00025206,2]
[366872089,1750531868380,-800.0,0.00025214,2]
[366872090,1750531868393,-3500.0,0.0002526,2]
[366872091,1750531868402,-4200.0,0.0002526,2]
[366872092,1750531868412,-3500.0,0.0002526,2]
[366872093,1750531868421,-641.41,0.00025278,6]
[366872094,1750531868431,-7278.26557058,0.00025278,2]
[366872095,1750531868441,-1242.8276153,0.00025278,2]
[366872096,1750531868451,-1867.10330499,0.00025279,12]
[366872097,1750531868461,-160.0,0.000253,3]
[366872098,1750531868471,-483.37,0.000253,31]
[366872099,1750531868481,-483.37,0.000253,31]
[366872100,1750531868492,-483.37,0.000253,31]
[366872101,1750531868502,-483.37,0.000253,31]
[366872102,1750531868511,-483.37,0.000253,31]
[366872103,1750531868521,-483.37,0.000253,31]
[366872104,1750531868531,-483.37,0.000253,31]
[366872105,1750531868540,-483.37,0.000253,31]
[366872106,1750531868550,-483.37,0.000253,31]
[366872107,1750531868559,-483.37,0.000253,31]
[366872108,1750531868569,-483.37,0.000253,31]
[366872109,1750531868579,-483.37,0.000253,31]
[366872110,1750531868588,-483.37,0.000253,31]
[366872111,1750531868597,-483.37,0.000253,31]
[366872112,1750531868607,-483.37,0.000253,31]
[366872113,1750531868616,-483.37,0.000253,31]
[366872114,1750531868625,-483.37,0.000253,31]
[366872115,1750531868635,-483.37,0.000253,31]
[366872116,1750531868644,-483.37,0.000253,31]
[366872117,1750531868654,-483.37,0.000253,31]
[366872118,1750531868664,-483.37,0.000253,31]
[366872119,1750531868674,-483.37,0.000253,31]
[366872120,1750531868684,-483.37,0.000253,31]
[366872121,1750531868693,-483.37,0.000253,31]
[366872122,1750531868703,-255.0,0.0002531,2]
[366872123,1750531868712,-255.0,0.00025315,2]
[366872124,1750531868721,-255.0,0.0002532,2]
[366872125,1750531868731,-255.0,0.00025325,2]
[366872126,1750531868739,-341.1397657,0.0002533,2]
[366872127,1750531868749,-750.0,0.00025364,2]
[366872128,1750531868759,-354.3836314,0.0002537,2]
[366872129,1750531868768,-1148.6604576,0.0002537,2]
[366872130,1750531868777,-318.0451348,0.0002537,2]
[366872131,1750531868787,-177.2671816,0.0002537,2]
[366872132,1750531868796,-153.0,0.0002537,2]
[366872133,1750531868806,-158.6606924,0.0002537,2]
[366872134,1750531868816,-574.5372799,0.0002537,2]
[366872135,1750531868826,-153.0,0.0002537,2]
[366872136,1750531868835,-153.0,0.0002537,2]
[366872137,1750531868845,-177.2671816,0.0002537,2]
[366872138,1750531868855,-574.5372799,0.0002537,2]
[366872139,1750531868864,-153.0,0.0002537,2]
[366872140,1750531868874,-153.0,0.0002537,2]
[366872141,1750531868883,-153.0,0.0002537,2]
[366872142,1750531868893,-153.0,0.0002537,2]
[366872143,1750531868903,-153.0,0.0002537,2]
[366872144,1750531868912,-153.0,0.0002537,2]
[366872145,1750531868922,-153.0,0.0002537,2]
[366872146,1750531868931,-153.0,0.0002537,2]
[366872147,1750531868940,-563.812414,0.0002537,2]
[366872148,1750531868950,-175.4578366,0.0002537,2]
[366872149,1750531868959,-1414662.27951662,0.00025382,20]
[366872150,1750531868974,-5656.11637355,0.00025382,20]
[366872151,1750531869284,-460.0,0.00021917,2]
[366872152,1750531869293,-460.0,0.00021917,2]
[366872153,1750531869303,-460.0,0.00021917,2]
[366872154,1750531869312,-460.0,0.00021917,2]
[366872155,1750531869322,-460.0,0.00021917,2]
[366872156,1750531869332,-460.0,0.00021917,2]
[366872157,1750531869342,-460.0,0.00021917,2]
[366872158,1750531869352,-15725.53227641,0.00025382,20]
[366872159,1750531869364,-54508.52775305,0.00025382,20]
[366872160,1750531869412,-460.0,0.00021917,2]
[366872161,1750531869421,-460.0,0.00021917,2]
[366872162,1750531869432,-460.0,0.00021917,2]
[366872163,1750531869441,-304.5842476,0.00021917,2]
[366872164,1750531869450,-153.0,0.00025,120]
[366872165,1750531869460,-3258.18994626,0.00025382,20]
[366872166,1750531869477,-512.6282292,0.00024521,2]
[366872167,1750531869486,-8615.5171498,0.00025382,20]
[366872169,1750532070747,200.0,0.00024528,120]
[366872170,1750532082689,1000.0,0.00024,120]
[366872171,1750532083949,1000.0,0.00024,120]
[366872172,1750532086495,1000.0,0.00024,120]
[366872173,1750532087278,1000.0,0.00024,120]
[366872176,1750532294048,363.510833,0.00018375,2]
[366872177,1750532533713,271.961473,0.00013699,2]
[366872180,1750532618607,333.0,0.000191,2]
[366872241,1750533032737,-1088.82959033,0.00019261,2]
[366872291,1750533033250,-300.0,0.0001936,2]
[366872293,1750533033260,-300.0,0.0001936,2]
[366872295,1750533033271,-1075.0,0.0001936,2]
[366872297,1750533033281,-500.0,0.0001936,2]
[366872299,1750533033294,-649.62476231,0.0001936,2]
[366872301,1750533033304,-500.0,0.0001936,2]
[366872303,1750533033314,-649.62476231,0.0001936,2]
[366872305,1750533033324,-168.95817847,0.0001936,2]
[366872307,1750533033333,-649.62476231,0.0001936,2]
[366872309,1750533033343,-649.62476231,0.0001936,2]
[366872311,1750533033354,-649.62476231,0.0001936,2]
[366872313,1750533033364,-649.62476231,0.0001936,2]
[366872315,1750533033378,-649.62476231,0.0001936,2]
[366872317,1750533033388,-649.62476231,0.0001936,2]
[366872319,1750533033399,-2417.06953079,0.00019361,2]
[366872323,1750533033426,-513.55,0.0001936,2]
[366872325,1750533033438,-136.07476231,0.0001936,2]
[366872327,1750533033448,-378.32523769,0.00019361,2]
[366872706,1750533038375,-649.62476231,0.0001936,2]
[366872708,1750533038385,-403.88045697,0.0001936,2]
[366872710,1750533038394,-500.0,0.0001936,2]
[366872712,1750533038403,-376.21045946,0.0001936,2]
[366872714,1750533038412,-500.0,0.0001936,2]
[366872716,1750533038422,-500.0,0.0001936,2]
[366872718,1750533038431,-649.62476231,0.0001936,2]
[366872720,1750533038440,-500.0,0.0001936,2]
[366872722,1750533038450,-500.0,0.0001936,2]
[366872724,1750533038458,-272.98346989,0.0001936,2]
[366872726,1750533038468,-645.3912671,0.0001936,2]
[366872728,1750533038477,-500.0,0.0001936,2]
[366872730,1750533038485,-500.0,0.0001936,2]
[366872732,1750533038494,-500.0,0.0001936,2]
[366872734,1750533038503,-500.0,0.0001936,2]
[366872736,1750533038512,-199.97704214,0.0001936,2]
[366872740,1750533038521,-649.62476231,0.0001936,2]
[366872744,1750533038530,-500.0,0.0001936,2]
[366872747,1750533038540,-500.0,0.0001936,2]
[366872749,1750533038549,-500.0,0.0001936,2]
[366872751,1750533038559,-500.0,0.0001936,2]
[366872753,1750533038569,-500.0,0.0001936,2]
[366872755,1750533038578,-500.0,0.0001936,2]
[366872757,1750533038587,-649.62476231,0.0001936,2]
[366872759,1750533038596,-500.0,0.0001936,2]
[366872761,1750533038605,-500.0,0.0001936,2]
[366872763,1750533038615,-649.62476231,0.0001936,2]
[366872765,1750533038624,-500.0,0.0001936,2]
[366872767,1750533038633,-500.0,0.0001936,2]
[366872769,1750533038644,-500.0,0.0001936,2]
[366872771,1750533038653,-500.0,0.0001936,2]
[366872773,1750533038663,-500.0,0.0001936,2]
[366872775,1750533038672,-649.62476231,0.0001936,2]
[366872777,1750533038681,-649.62476231,0.0001936,2]
[366872779,1750533038691,-33879.18396826,0.00019361,2]
[366872782,1750533038704,-13325.42126326,0.00019361,2]
[366872784,1750533038713,-300.0,0.00019363,2]
[366872786,1750533038723,-1000.0,0.00019372,2]
[366872788,1750533038734,-1000.0,0.00019372,2]
[366872790,1750533038744,-1000.0,0.00019372,2]
[366872792,1750533038753,-1000.0,0.00019394,2]
[366872794,1750533038763,-1000.0,0.00019394,2]
[366872796,1750533038773,-160.0,0.00019396,2]
[366872798,1750533038783,-24900.0,0.00019786,2]
[366872800,1750533038791,-196.379253,0.00020034,2]
[366872802,1750533038801,-1088.82959029,0.00020116,2]
[366872804,1750533038811,-271.961473,0.00020187,2]
[366872806,1750533038820,-500.0,0.00020548,2]
[366872808,1750533038829,-164.47248045,0.00020548,2]
[366872810,1750533038838,-500.0,0.00020548,2]
[366872812,1750533038851,-500.0,0.00020548,2]
[366872814,1750533038860,-160.0,0.00020766,2]
[366872816,1750533038870,-169.42703452,0.00020932,2]
[366872818,1750533038879,-1088.82959029,0.0002097,2]
[366872820,1750533038888,-1000.0,0.00021,21]
[366872822,1750533038898,-420.0,0.00021095,2]
[366872824,1750533038907,-420.0,0.00021097,2]
[366872826,1750533038917,-593.07120688,0.000211,4]
[366872828,1750533038926,-593.07120682,0.000211,4]
[366872830,1750533038935,-593.07120682,0.00021245,4]
[366872831,1750533038944,-593.07120682,0.00021417,5]
[366872834,1750533038953,-500.0,0.00021478,7]
[366872835,1750533038962,-593.07120682,0.0002159,5]
[366872838,1750533038972,-593.07120682,0.00021762,5]
[366872839,1750533038981,-500.0,0.00021818,2]
[366872841,1750533038990,-1088.82959029,0.00021825,2]
[366872844,1750533038999,-166.44,0.00021907,3]
[366872846,1750533039009,-499.34,0.00021907,3]
[366872848,1750533039018,-460.0,0.00021917,2]
[366872850,1750533039027,-460.0,0.00021917,2]
[366872851,1750533039037,-482.54909682,0.00021917,2]
[366872853,1750533039049,-460.0,0.00021917,2]
[366872856,1750533039058,-211.021358,0.00021917,2]
[366872858,1750533039067,-460.0,0.00021917,2]
[366872860,1750533039078,-500.0,0.00021917,2]
[366872862,1750533039087,-500.0,0.00021917,2]
[366872864,1750533039096,-500.0,0.00021917,2]
[366872866,1750533039106,-500.0,0.00021917,2]
[366872868,1750533039116,-509.22927698,0.00021917,2]
[366872870,1750533039125,-460.0,0.00021917,2]
[366872872,1750533039134,-460.0,0.00021917,2]
[366872874,1750533039145,-492.24077613,0.00021917,2]
[366872876,1750533039154,-151.0,0.00021917,2]
[366872878,1750533039163,-460.0,0.00021917,2]
[366872880,1750533039172,-151.0,0.00021917,2]
[366872882,1750533039182,-460.0,0.00021917,2]
[366872884,1750533039191,-151.0,0.00021917,2]
[366872886,1750533039200,-151.0,0.00021917,2]
[366872888,1750533039210,-471.58613462,0.00021917,2]
[366872890,1750533039219,-460.0,0.00021917,2]
[366872892,1750533039228,-460.0,0.00021917,2]
[366872894,1750533039237,-460.0,0.00021917,2]
[366872896,1750533039247,-287.91233316,0.00021917,2]
[366872898,1750533039257,-416.80915147,0.00021917,2]
[366872900,1750533039266,-436.95386115,0.00021917,2]
[366872902,1750533039276,-455.39795241,0.00021917,2]
[366872904,1750533039285,-460.0,0.00021917,2]
[366872906,1750533039294,-358.36902913,0.00021917,2]
[366872908,1750533039304,-437.27164428,0.00021917,2]
[366872910,1750533039313,-461.8907012,0.00021917,2]
[366872912,1750533039322,-460.0,0.00021917,2]
[366872914,1750533039331,-460.0,0.00021917,2]
[366872916,1750533039340,-460.0,0.00021917,2]
[366872918,1750533039349,-460.0,0.00021917,2]
[366872920,1750533039358,-469.71192103,0.00021917,2]
[366872922,1750533039367,-434.34921623,0.00021917,2]
[366872924,1750533039377,-460.0,0.00021917,2]
[366872926,1750533039386,-345.06,0.00021917,2]
[366872928,1750533039395,-460.0,0.00021917,2]
[366872930,1750533039404,-460.0,0.00021917,2]
[366872932,1750533039413,-477.00126912,0.00021917,2]
[366872934,1750533039422,-460.0,0.00021917,2]
[366872936,1750533039431,-460.0,0.00021917,2]
[366872938,1750533039441,-460.0,0.00021917,2]
[366872940,1750533039450,-460.0,0.00021917,2]
[366872942,1750533039459,-460.0,0.00021917,2]
[366872944,1750533039469,-438.6,0.00021917,2]
[366872946,1750533039479,-460.0,0.00021917,2]
[366872948,1750533039488,-460.0,0.00021917,2]
[366872950,1750533039497,-460.0,0.00021917,2]
[366872952,1750533039507,-460.0,0.00021917,2]
[366872954,1750533039516,-460.0,0.00021917,2]
[366872956,1750533039526,-460.0,0.00021917,2]
[366872958,1750533039536,-460.0,0.00021917,2]
[366872960,1750533039546,-460.0,0.00021917,2]
[366872963,1750533039555,-460.0,0.00021917,2]
[366872965,1750533039565,-460.0,0.00021917,2]
[366872967,1750533039575,-460.0,0.00021917,2]
[366872968,1750533039584,-460.0,0.00021917,2]
[366872970,1750533039593,-460.0,0.00021917,2]
[366872972,1750533039603,-460.0,0.00021917,2]
[366872974,1750533039612,-441.04642128,0.00021917,2]
[366872977,1750533039621,-460.0,0.00021917,2]
[366872979,1750533039631,-257.65,0.00021917,2]
[366872980,1750533039641,-460.0,0.00021917,2]
[366872982,1750533039650,-460.0,0.00021917,2]
[366872984,1750533039659,-460.0,0.00021917,2]
[366872986,1750533039669,-460.0,0.00021917,2]
[366872988,1750533039678,-460.0,0.00021917,2]
[366872990,1750533039687,-460.0,0.00021917,2]
[366872992,1750533039697,-575.39,0.00021917,2]
[366872994,1750533039706,-460.0,0.00021917,2]
[366872996,1750533039715,-460.0,0.00021917,2]
[366872998,1750533039725,-460.0,0.00021917,2]